[Event "*** Titled Tuesday Blitz"]
[Site "Chess.com"]
[Date "2019.10.01"]
[Round "2"]
[White "Nightlord1"]
[Black "ThePunisherxx"]
[Result "1-0"]
[WhiteElo "2238"]
[BlackElo "2639"]
[TimeControl "180+2"]
[EndTime "13:21:04 PDT"]
[Termination "Nightlord1 won by resignation"]

1. e4 {[%clk 0:02:35.2]} 1... c5 {[%clk 0:03:00.5]} 2. c3 {[%clk 0:02:35]} 2...
d5 {[%clk 0:02:56.1]} 3. exd5 {[%clk 0:02:33.5]} 3... Qxd5 {[%clk 0:02:58]} 4.
d4 {[%clk 0:02:31.6]} 4... e6 {[%clk 0:02:59]} 5. Nf3 {[%clk 0:02:31.6]} 5...
Nf6 {[%clk 0:03:00.2]} 6. Na3 {[%clk 0:02:29.8]} 6... Be7 {[%clk 0:02:54.6]} 7.
Nb5 {[%clk 0:02:29.6]} 7... Qd8 {[%clk 0:02:54.2]} 8. dxc5 {[%clk 0:02:25.7]}
8... Bxc5 {[%clk 0:02:35.8]} 9. Qxd8+ {[%clk 0:02:24.6]} 9... Kxd8 {[%clk
0:02:37.7]} 10. Bf4 {[%clk 0:02:22.4]} 10... Nd5 {[%clk 0:02:31.1]} 11. O-O-O
{[%clk 0:02:23.2]} 11... Bd7 {[%clk 0:02:22]} 12. Rxd5 {[%clk 0:01:57]} 12...
exd5 {[%clk 0:02:21]} 13. Nc7 {[%clk 0:01:57.4]} 13... Ke7 {[%clk 0:02:04.6]}
14. Nxa8 {[%clk 0:01:57.2]} 14... Bd6 {[%clk 0:02:05.2]} 15. Bg3 {[%clk
0:01:53.8]} 15... Bxg3 {[%clk 0:02:03.5]} 16. hxg3 {[%clk 0:01:54.5]} 16... Kd6
{[%clk 0:02:04.8]} 17. Ng5 {[%clk 0:01:48.4]} 17... Rf8 {[%clk 0:01:36.4]} 18.
Rxh7 {[%clk 0:01:46.5]} 18... Nc6 {[%clk 0:01:37.5]} 19. Rh8 {[%clk 0:01:45]}
19... Rxh8 {[%clk 0:01:31.4]} 20. Nxf7+ {[%clk 0:01:46.2]} 20... Ke7 {[%clk
0:01:30]} 21. Nxh8 {[%clk 0:01:48.1]} 21... Kd8 {[%clk 0:01:31.2]} 22. Ng6
{[%clk 0:01:37.6]} 22... Kc8 {[%clk 0:01:31.7]} 23. Nf8 {[%clk 0:01:38]} 23...
Bf5 {[%clk 0:01:30.3]} 24. g4 {[%clk 0:01:38.8]} 24... Bxg4 {[%clk 0:01:29.8]}
25. f3 {[%clk 0:01:38.4]} 25... Bh5 {[%clk 0:01:21.9]} 26. Ne6 {[%clk
0:01:37.8]} 26... Bf7 {[%clk 0:01:16.1]} 27. Nac7 {[%clk 0:01:38.6]} 27... Kd7
{[%clk 0:01:15.7]} 28. Ng5 {[%clk 0:01:33]} 28... Bg6 {[%clk 0:01:11.1]} 29. Nb5
{[%clk 0:01:34.3]} 29... a6 {[%clk 0:01:11.1]} 30. Nd4 {[%clk 0:01:35.6]} 30...
Ne5 {[%clk 0:01:12.5]} 31. Kd2 {[%clk 0:01:34.7]} 31... Kd6 {[%clk 0:01:11.4]}
32. Be2 {[%clk 0:01:35.3]} 32... a5 {[%clk 0:01:10]} 33. a4 {[%clk 0:01:35.8]}
33... Nd7 {[%clk 0:01:10]} 34. b3 {[%clk 0:01:36.8]} 34... Nc5 {[%clk
0:01:10.9]} 35. f4 {[%clk 0:01:32.9]} 35... Bb1 {[%clk 0:01:06.1]} 36. g4 {[%clk
0:01:33.7]} 36... g6 {[%clk 0:00:54.2]} 37. f5 {[%clk 0:01:33.6]} 37... gxf5
{[%clk 0:00:56.1]} 38. gxf5 {[%clk 0:01:35.1]} 38... Ke5 {[%clk 0:00:57.4]} 39.
Bg4 {[%clk 0:01:30.8]} 39... Kf6 {[%clk 0:00:56.9]} 40. Nge6 {[%clk 0:01:30.6]}
40... Ne4+ {[%clk 0:00:57.9]} 41. Kc1 {[%clk 0:01:31.2]} 41... Nf2 {[%clk
0:00:55.4]} 42. Kxb1 {[%clk 0:01:32]} 42... Nxg4 {[%clk 0:00:56.3]} 43. Nc5
{[%clk 0:01:31.3]} 43... b6 {[%clk 0:00:55.2]} 44. Nd7+ {[%clk 0:01:32.5]} 44...
Kg5 {[%clk 0:00:56.3]} 45. Nxb6 {[%clk 0:01:34.4]} 45... Ne3 {[%clk 0:00:57.9]}
46. Kb2 {[%clk 0:01:33.3]} 46... Nxf5 {[%clk 0:00:58]} 47. Nxf5 {[%clk
0:01:34.3]} 47... Kxf5 {[%clk 0:00:59.9]} 48. Nxd5 {[%clk 0:01:35.9]} 48... Ke5
{[%clk 0:01:00.9]} 49. b4 {[%clk 0:01:34.1]} 49... axb4 {[%clk 0:01:01.6]} 50.
cxb4 {[%clk 0:01:36]} 1-0

[Event "*** Titled Tuesday Blitz"]
[Site "Chess.com"]
[Date "2019.10.01"]
[Round "2"]
[White "Aariow"]
[Black "newauto"]
[Result "1-0"]
[WhiteElo "2414"]
[BlackElo "2002"]
[TimeControl "180+2"]
[EndTime "13:21:12 PDT"]
[Termination "Aariow won by checkmate"]

1. Nf3 {[%clk 0:03:01.9]} 1... c6 {[%clk 0:03:01.3]} 2. g3 {[%clk 0:03:03]} 2...
d5 {[%clk 0:03:03.2]} 3. Bg2 {[%clk 0:03:04.7]} 3... Nf6 {[%clk 0:03:03.4]} 4.
O-O {[%clk 0:03:06.2]} 4... Bf5 {[%clk 0:03:03.6]} 5. c4 {[%clk 0:03:06.3]} 5...
e6 {[%clk 0:03:04.2]} 6. cxd5 {[%clk 0:03:07.8]} 6... cxd5 {[%clk 0:03:04.4]} 7.
Qb3 {[%clk 0:03:08.3]} 7... Qc8 {[%clk 0:02:56.6]} 8. d3 {[%clk 0:03:06.2]} 8...
Nc6 {[%clk 0:02:55]} 9. Bf4 {[%clk 0:03:07.7]} 9... Be7 {[%clk 0:02:50]} 10. Rc1
{[%clk 0:03:09]} 10... Nd7 {[%clk 0:02:38.5]} 11. Nc3 {[%clk 0:02:58.3]} 11...
O-O {[%clk 0:02:38.3]} 12. e4 {[%clk 0:02:58.9]} 12... dxe4 {[%clk 0:02:35.7]}
13. dxe4 {[%clk 0:03:00.8]} 13... Nc5 {[%clk 0:02:32.3]} 14. Qc4 {[%clk
0:02:54.6]} 14... Bg6 {[%clk 0:02:14.3]} 15. b4 {[%clk 0:02:55.4]} 15... Nd7
{[%clk 0:02:09.2]} 16. a3 {[%clk 0:02:37.7]} 16... e5 {[%clk 0:01:55.6]} 17. Be3
{[%clk 0:02:24.2]} 17... a6 {[%clk 0:01:50.3]} 18. Nd5 {[%clk 0:02:24]} 18...
Bd8 {[%clk 0:01:48.6]} 19. Nd2 {[%clk 0:02:17.1]} 19... Kh8 {[%clk 0:01:17.8]}
20. Bh3 {[%clk 0:02:16.9]} 20... f5 {[%clk 0:01:15.9]} 21. Qb3 {[%clk 0:02:03]}
21... Qb8 {[%clk 0:00:44.4]} 22. Qb1 {[%clk 0:01:46]} 22... Nd4 {[%clk
0:00:36.4]} 23. Bxd4 {[%clk 0:01:43.2]} 23... exd4 {[%clk 0:00:35.1]} 24. exf5
{[%clk 0:01:44.3]} 24... Be8 {[%clk 0:00:22.1]} 25. Nf4 {[%clk 0:01:45.4]} 25...
Bf7 {[%clk 0:00:16.4]} 26. Ne6 {[%clk 0:01:28.5]} 26... Re8 {[%clk 0:00:15]} 27.
Ne4 {[%clk 0:01:26.5]} 27... Bb6 {[%clk 0:00:14.6]} 28. N4g5 {[%clk 0:01:24.9]}
28... Bg8 {[%clk 0:00:14.8]} 29. Qe4 {[%clk 0:01:18.9]} 29... Nf6 {[%clk
0:00:14.7]} 30. Qh4 {[%clk 0:01:17.8]} 30... Qd6 {[%clk 0:00:13.1]} 31. Nf4
{[%clk 0:01:11.3]} 31... h5 {[%clk 0:00:02.1]} 32. Ng6# {[%clk 0:01:11.6]} 1-0

[Event "*** Titled Tuesday Blitz"]
[Site "Chess.com"]
[Date "2019.10.01"]
[Round "2"]
[White "adriangschnitzer"]
[Black "DrMelekess"]
[Result "1-0"]
[WhiteElo "2522"]
[BlackElo "2724"]
[TimeControl "180+2"]
[EndTime "13:21:17 PDT"]
[Termination "adriangschnitzer won by resignation"]

1. e4 {[%clk 0:02:59.9]} 1... Nc6 {[%clk 0:02:59.5]} 2. Nf3 {[%clk 0:02:59.9]}
2... d5 {[%clk 0:02:59.4]} 3. exd5 {[%clk 0:02:58.8]} 3... Qxd5 {[%clk
0:03:00.1]} 4. Nc3 {[%clk 0:03:00.1]} 4... Qa5 {[%clk 0:03:00.8]} 5. Bb5 {[%clk
0:02:58.9]} 5... Bd7 {[%clk 0:03:01.2]} 6. a3 {[%clk 0:02:54.8]} 6... O-O-O
{[%clk 0:02:43.4]} 7. O-O {[%clk 0:02:45.7]} 7... a6 {[%clk 0:02:42.3]} 8. b4
{[%clk 0:02:29.3]} 8... Nxb4 {[%clk 0:02:42.8]} 9. axb4 {[%clk 0:02:29.3]} 9...
Qxa1 {[%clk 0:02:43.2]} 10. Bxd7+ {[%clk 0:02:30.2]} 10... Rxd7 {[%clk
0:02:39.2]} 11. Ne5 {[%clk 0:02:30.2]} 11... Nf6 {[%clk 0:01:51.4]} 12. Nxd7
{[%clk 0:02:25.8]} 12... Kxd7 {[%clk 0:01:47.8]} 13. Qf3 {[%clk 0:02:24.2]}
13... c6 {[%clk 0:01:48.4]} 14. Qd3+ {[%clk 0:02:06.3]} 14... Kc8 {[%clk
0:01:43.2]} 15. Qc4 {[%clk 0:01:54.9]} 15... e6 {[%clk 0:01:37]} 16. Qb3 {[%clk
0:01:50.4]} 16... a5 {[%clk 0:00:21.8]} 17. Ba3 {[%clk 0:01:27.8]} 17... Qxf1+
{[%clk 0:00:08.4]} 18. Kxf1 {[%clk 0:01:28]} 18... axb4 {[%clk 0:00:10.3]} 19.
Bxb4 {[%clk 0:01:27.9]} 19... Bxb4 {[%clk 0:00:11.9]} 20. Qxb4 {[%clk
0:01:28.1]} 20... Rd8 {[%clk 0:00:13.8]} 21. Ne4 {[%clk 0:01:12.6]} 21... Nxe4
{[%clk 0:00:07.9]} 22. Qxe4 {[%clk 0:01:14.5]} 22... g6 {[%clk 0:00:08.6]} 23.
Ke2 {[%clk 0:01:12.9]} 23... h5 {[%clk 0:00:08.4]} 24. Qf4 {[%clk 0:01:09.5]}
24... Rd7 {[%clk 0:00:08.7]} 25. d4 {[%clk 0:01:10]} 25... b6 {[%clk 0:00:09.1]}
26. f3 {[%clk 0:01:08.6]} 26... Kb7 {[%clk 0:00:10.2]} 27. g4 {[%clk 0:01:08.1]}
1-0

[Event "*** Titled Tuesday Blitz"]
[Site "Chess.com"]
[Date "2019.10.01"]
[Round "2"]
[White "Spring199"]
[Black "Taron_Shagbazyan"]
[Result "0-1"]
[WhiteElo "2373"]
[BlackElo "2768"]
[TimeControl "180+2"]
[EndTime "13:21:21 PDT"]
[Termination "Taron_Shagbazyan won by checkmate"]

1. d4 {[%clk 0:03:01.9]} 1... Nf6 {[%clk 0:02:58.8]} 2. c4 {[%clk 0:03:03]} 2...
e6 {[%clk 0:03:00.1]} 3. Nf3 {[%clk 0:03:03.2]} 3... d5 {[%clk 0:02:59.8]} 4. g3
{[%clk 0:03:03.5]} 4... Be7 {[%clk 0:02:59.9]} 5. Bg2 {[%clk 0:03:04.7]} 5...
O-O {[%clk 0:03:01.4]} 6. O-O {[%clk 0:03:06.6]} 6... dxc4 {[%clk 0:03:02.4]} 7.
Qc2 {[%clk 0:03:01.4]} 7... b5 {[%clk 0:03:02.7]} 8. Ne5 {[%clk 0:02:42.4]} 8...
Qxd4 {[%clk 0:03:03.1]} 9. Bxa8 {[%clk 0:02:39]} 9... Qxe5 {[%clk 0:03:04.2]}
10. Bf3 {[%clk 0:02:38.9]} 10... Na6 {[%clk 0:02:59.6]} 11. Bf4 {[%clk
0:02:38.7]} 11... Qc5 {[%clk 0:02:56.9]} 12. Nc3 {[%clk 0:02:35.7]} 12... Nb4
{[%clk 0:02:55.2]} 13. Qc1 {[%clk 0:02:32.5]} 13... a6 {[%clk 0:02:56.4]} 14. a3
{[%clk 0:02:26.6]} 14... Nbd5 {[%clk 0:02:57.2]} 15. Nxd5 {[%clk 0:02:25.9]}
15... exd5 {[%clk 0:02:50.4]} 16. Be5 {[%clk 0:02:23.1]} 16... c6 {[%clk
0:02:50.9]} 17. Qf4 {[%clk 0:02:20.1]} 17... Re8 {[%clk 0:02:52.3]} 18. Rad1
{[%clk 0:02:17.9]} 18... a5 {[%clk 0:02:45.4]} 19. h4 {[%clk 0:02:16.3]} 19...
b4 {[%clk 0:02:46.1]} 20. h5 {[%clk 0:02:14.4]} 20... h6 {[%clk 0:02:45.2]} 21.
g4 {[%clk 0:02:12.7]} 21... Nh7 {[%clk 0:02:40.2]} 22. Bd4 {[%clk 0:01:56.8]}
22... Qd6 {[%clk 0:02:35.6]} 23. Qd2 {[%clk 0:01:44.6]} 23... Ng5 {[%clk
0:02:33.5]} 24. axb4 {[%clk 0:01:42]} 24... axb4 {[%clk 0:02:20.1]} 25. Be3
{[%clk 0:01:37.5]} 25... Bf6 {[%clk 0:02:15]} 26. Rc1 {[%clk 0:01:24]} 26... b3
{[%clk 0:02:08.3]} 27. Rxc4 {[%clk 0:01:19]} 27... Rxe3 {[%clk 0:02:01.1]} 28.
Rxc6 {[%clk 0:00:43.9]} 28... Qxc6 {[%clk 0:01:56.1]} 29. Bxd5 {[%clk
0:00:40.6]} 29... Qd7 {[%clk 0:01:49.3]} 30. fxe3 {[%clk 0:00:35]} 30... Qxg4+
{[%clk 0:01:49.8]} 31. Bg2 {[%clk 0:00:35.2]} 31... Bb7 {[%clk 0:01:49.5]} 32.
e4 {[%clk 0:00:22.6]} 32... Bxe4 {[%clk 0:01:49.2]} 33. Rf2 {[%clk 0:00:23.3]}
33... Nh3+ {[%clk 0:01:48.1]} 34. Kf1 {[%clk 0:00:14.8]} 34... Nxf2 {[%clk
0:01:41.1]} 35. Bxe4 {[%clk 0:00:06.9]} 35... Nxe4 {[%clk 0:01:41.5]} 36. Qb4
{[%clk 0:00:05.8]} 36... Qf4+ {[%clk 0:01:38.8]} 37. Ke1 {[%clk 0:00:05.7]}
37... Qc1# {[%clk 0:01:39.2]} 0-1

[Event "*** Titled Tuesday Blitz"]
[Site "Chess.com"]
[Date "2019.10.01"]
[Round "2"]
[White "JSPrepz"]
[Black "LazarusChess92"]
[Result "1-0"]
[WhiteElo "2841"]
[BlackElo "2543"]
[TimeControl "180+2"]
[EndTime "13:21:23 PDT"]
[Termination "JSPrepz won by resignation"]

1. e4 {[%clk 0:03:01.9]} 1... c5 {[%clk 0:03:00.8]} 2. Nf3 {[%clk 0:03:01.7]}
2... d6 {[%clk 0:03:01.7]} 3. Nc3 {[%clk 0:03:03.1]} 3... Nf6 {[%clk 0:03:02.6]}
4. e5 {[%clk 0:02:57.4]} 4... dxe5 {[%clk 0:03:04.5]} 5. Nxe5 {[%clk 0:02:59]}
5... a6 {[%clk 0:03:05.6]} 6. g3 {[%clk 0:02:59.8]} 6... Qd6 {[%clk 0:03:05.9]}
7. Nc4 {[%clk 0:02:57.9]} 7... Qc6 {[%clk 0:02:38.6]} 8. Rg1 {[%clk 0:02:59]}
8... Bg4 {[%clk 0:02:38.2]} 9. Be2 {[%clk 0:02:59.2]} 9... Bxe2 {[%clk
0:02:37.5]} 10. Qxe2 {[%clk 0:03:01.1]} 10... e6 {[%clk 0:02:16.3]} 11. d3
{[%clk 0:02:59.7]} 11... Be7 {[%clk 0:02:12.2]} 12. Bg5 {[%clk 0:02:51.4]} 12...
O-O {[%clk 0:02:08.7]} 13. O-O-O {[%clk 0:02:49.9]} 13... b5 {[%clk 0:02:02.8]}
14. Ne5 {[%clk 0:02:50.5]} 14... Qc7 {[%clk 0:02:03.5]} 15. f4 {[%clk
0:02:42.8]} 15... Nc6 {[%clk 0:02:00.6]} 16. Nxc6 {[%clk 0:02:25.1]} 16... Qxc6
{[%clk 0:02:02.5]} 17. Ne4 {[%clk 0:02:20.1]} 17... Nd5 {[%clk 0:01:41.2]} 18.
c4 {[%clk 0:02:07.4]} 18... Nf6 {[%clk 0:01:23.5]} 19. Nxf6+ {[%clk 0:02:03.6]}
19... gxf6 {[%clk 0:01:22.8]} 20. Bh6 {[%clk 0:02:03.6]} 20... Kh8 {[%clk
0:01:21.7]} 21. Bxf8 {[%clk 0:02:04.2]} 21... Bxf8 {[%clk 0:01:23]} 22. Qe4
{[%clk 0:02:02]} 22... Qe8 {[%clk 0:01:19.2]} 23. f5 {[%clk 0:02:01.1]} 23... e5
{[%clk 0:01:18]} 24. Kb1 {[%clk 0:02:00.9]} 24... Rd8 {[%clk 0:01:18.4]} 25. g4
{[%clk 0:02:00.2]} 25... Bh6 {[%clk 0:01:18.3]} 26. h4 {[%clk 0:02:00.3]} 26...
Rd4 {[%clk 0:01:13.8]} 27. Qb7 {[%clk 0:02:01.1]} 27... Be3 {[%clk 0:01:09.7]}
28. Rge1 {[%clk 0:01:32.8]} 28... Bf2 {[%clk 0:01:10.8]} 29. Re4 {[%clk
0:01:33.9]} 29... bxc4 {[%clk 0:00:57.4]} 30. Rxd4 {[%clk 0:01:32]} 30... cxd4
{[%clk 0:00:58.4]} 31. Qxa6 {[%clk 0:01:24.4]} 31... cxd3 {[%clk 0:00:53.7]} 32.
Qxf6+ {[%clk 0:01:24.2]} 32... Kg8 {[%clk 0:00:52.8]} 33. Qg5+ {[%clk
0:01:07.9]} 33... Kh8 {[%clk 0:00:52.5]} 34. f6 {[%clk 0:00:57.1]} 34... Qf8
{[%clk 0:00:33]} 35. Qxe5 {[%clk 0:00:53.3]} 1-0

[Event "*** Titled Tuesday Blitz"]
[Site "Chess.com"]
[Date "2019.10.01"]
[Round "2"]
[White "benhal"]
[Black "raviteja81293"]
[Result "0-1"]
[WhiteElo "2307"]
[BlackElo "2609"]
[TimeControl "180+2"]
[EndTime "13:21:24 PDT"]
[Termination "raviteja81293 won by resignation"]

1. e4 {[%clk 0:03:01.9]} 1... c6 {[%clk 0:02:58.9]} 2. d4 {[%clk 0:02:59.9]}
2... d5 {[%clk 0:03:00.8]} 3. Nd2 {[%clk 0:02:56.2]} 3... dxe4 {[%clk
0:03:01.4]} 4. Nxe4 {[%clk 0:02:58.1]} 4... Nf6 {[%clk 0:03:02.8]} 5. Nxf6+
{[%clk 0:02:58.6]} 5... exf6 {[%clk 0:03:04.7]} 6. Bd3 {[%clk 0:02:59.3]} 6...
Qxd4 {[%clk 0:03:04.3]} 7. Ne2 {[%clk 0:02:57.1]} 7... Qd8 {[%clk 0:03:04.7]} 8.
O-O {[%clk 0:02:57.8]} 8... Bd6 {[%clk 0:03:05.4]} 9. Ng3 {[%clk 0:02:56]} 9...
O-O {[%clk 0:03:03]} 10. Qh5 {[%clk 0:02:54.9]} 10... g6 {[%clk 0:03:02.9]} 11.
Qh6 {[%clk 0:02:52.7]} 11... Re8 {[%clk 0:03:04.1]} 12. Bd2 {[%clk 0:02:29.2]}
12... Nd7 {[%clk 0:03:02.1]} 13. Rae1 {[%clk 0:02:28.3]} 13... Rxe1 {[%clk
0:02:58.2]} 14. Rxe1 {[%clk 0:02:30.2]} 14... Ne5 {[%clk 0:02:58.4]} 15. Bf1
{[%clk 0:02:04.7]} 15... Be6 {[%clk 0:02:47.8]} 16. h3 {[%clk 0:02:05.3]} 16...
Bf8 {[%clk 0:02:47.6]} 17. Qf4 {[%clk 0:02:04.1]} 17... Bg7 {[%clk 0:02:45.4]}
18. Bc3 {[%clk 0:01:59.7]} 18... Qd6 {[%clk 0:02:34.3]} 19. Ne4 {[%clk
0:01:46.7]} 19... Qe7 {[%clk 0:02:29.1]} 20. Nxf6+ {[%clk 0:01:47.4]} 20... Qxf6
{[%clk 0:02:27.3]} 21. Qxf6 {[%clk 0:01:46.7]} 21... Bxf6 {[%clk 0:02:29.2]} 22.
Bxe5 {[%clk 0:01:47.9]} 22... Kg7 {[%clk 0:02:20]} 23. Bxf6+ {[%clk 0:01:46]}
23... Kxf6 {[%clk 0:02:21.1]} 24. a3 {[%clk 0:01:44.1]} 24... Rd8 {[%clk
0:02:21.6]} 25. Bd3 {[%clk 0:01:40.7]} 25... a5 {[%clk 0:02:12.5]} 26. f3 {[%clk
0:01:39.4]} 26... h5 {[%clk 0:02:11.5]} 27. Kf2 {[%clk 0:01:38]} 27... h4 {[%clk
0:02:12.8]} 28. Re4 {[%clk 0:01:38.3]} 28... g5 {[%clk 0:02:13.2]} 29. Ra4
{[%clk 0:01:38.5]} 29... b6 {[%clk 0:02:12.9]} 30. b4 {[%clk 0:01:39.3]} 30...
Rd4 {[%clk 0:01:44.1]} 31. Ke3 {[%clk 0:01:29.5]} 31... Ke5 {[%clk 0:01:45.1]}
32. c3 {[%clk 0:01:14.4]} 32... Rxd3+ {[%clk 0:01:42.6]} 33. Kxd3 {[%clk
0:01:16.3]} 33... Bb3 {[%clk 0:01:43.9]} 34. bxa5 {[%clk 0:01:15.5]} 34... Bxa4
{[%clk 0:01:45.3]} 35. axb6 {[%clk 0:01:17.3]} 35... Kd6 {[%clk 0:01:46.7]} 36.
c4 {[%clk 0:01:16.3]} 36... c5 {[%clk 0:01:45.3]} 37. b7 {[%clk 0:01:16.9]}
37... Kc7 {[%clk 0:01:45.7]} 38. Ke4 {[%clk 0:01:18.5]} 38... Bd7 {[%clk
0:01:44.4]} 39. Ke5 {[%clk 0:01:13.3]} 39... f5 {[%clk 0:01:37.1]} 40. Kf6
{[%clk 0:01:12.9]} 40... g4 {[%clk 0:01:38.1]} 41. fxg4 {[%clk 0:01:02.7]} 41...
fxg4 {[%clk 0:01:40]} 42. hxg4 {[%clk 0:01:03.8]} 42... Bxg4 {[%clk 0:01:40.4]}
43. Kg5 {[%clk 0:01:04.2]} 43... h3 {[%clk 0:01:41.2]} 44. gxh3 {[%clk
0:01:05.7]} 44... Bxh3 {[%clk 0:01:43.1]} 45. Kf4 {[%clk 0:01:07.2]} 45... Kxb7
{[%clk 0:01:40.3]} 46. Ke4 {[%clk 0:01:08.6]} 46... Be6 {[%clk 0:01:37.9]} 47.
Ke5 {[%clk 0:00:51.6]} 47... Bxc4 {[%clk 0:01:36.7]} 48. Kd6 {[%clk 0:00:53.5]}
48... Kb6 {[%clk 0:01:38.1]} 49. a4 {[%clk 0:00:54.9]} 49... Ba6 {[%clk
0:01:38.4]} 50. a5+ {[%clk 0:00:56.3]} 50... Kb5 {[%clk 0:01:39.8]} 51. Kd5
{[%clk 0:00:58.1]} 51... c4 {[%clk 0:01:41.2]} 52. Kd4 {[%clk 0:00:59.3]} 52...
Kxa5 {[%clk 0:01:42.8]} 53. Kc3 {[%clk 0:01:01.2]} 0-1

[Event "*** Titled Tuesday Blitz"]
[Site "Chess.com"]
[Date "2019.10.01"]
[Round "2"]
[White "FranciscodelaF"]
[Black "AndrewMcStone"]
[Result "1-0"]
[WhiteElo "2454"]
[BlackElo "2141"]
[TimeControl "180+2"]
[EndTime "13:21:29 PDT"]
[Termination "FranciscodelaF won by resignation"]

1. d4 {[%clk 0:03:01.9]} 1... Nf6 {[%clk 0:02:56.9]} 2. c4 {[%clk 0:03:03.1]}
2... Nc6 {[%clk 0:02:56.6]} 3. Nf3 {[%clk 0:03:02.4]} 3... e6 {[%clk 0:02:57.5]}
4. e3 {[%clk 0:03:00.6]} 4... Bb4+ {[%clk 0:02:55.3]} 5. Bd2 {[%clk 0:03:00.9]}
5... Qe7 {[%clk 0:02:56.3]} 6. Bd3 {[%clk 0:03:01.1]} 6... Bxd2+ {[%clk
0:02:51.6]} 7. Qxd2 {[%clk 0:02:59.5]} 7... O-O {[%clk 0:02:50.2]} 8. O-O {[%clk
0:02:59.5]} 8... d6 {[%clk 0:02:51.3]} 9. e4 {[%clk 0:02:52.8]} 9... e5 {[%clk
0:02:51.8]} 10. d5 {[%clk 0:02:54.2]} 10... Nb8 {[%clk 0:02:50.8]} 11. Nc3
{[%clk 0:02:55.2]} 11... a5 {[%clk 0:02:33.6]} 12. a3 {[%clk 0:02:48.7]} 12...
a4 {[%clk 0:02:28.6]} 13. Bc2 {[%clk 0:02:48.5]} 13... Bd7 {[%clk 0:02:29.1]}
14. Qd1 {[%clk 0:02:49.3]} 14... Na6 {[%clk 0:01:58.2]} 15. Bxa4 {[%clk
0:02:47.6]} 15... Bxa4 {[%clk 0:01:53.1]} 16. Qxa4 {[%clk 0:02:48.6]} 16... Nh5
{[%clk 0:01:32.8]} 17. Qc2 {[%clk 0:02:44.5]} 17... g6 {[%clk 0:01:00.9]} 18.
Ne1 {[%clk 0:02:42.2]} 18... f5 {[%clk 0:00:58.1]} 19. f3 {[%clk 0:02:41.7]}
19... Nf4 {[%clk 0:00:48.3]} 20. Nd3 {[%clk 0:02:41.1]} 20... Qg5 {[%clk
0:00:33.8]} 21. Nxf4 {[%clk 0:02:41.6]} 21... Qxf4 {[%clk 0:00:29.7]} 22. Rae1
{[%clk 0:02:23.2]} 22... Rf7 {[%clk 0:00:22.2]} 23. Qc1 {[%clk 0:02:19.1]} 23...
Qh4 {[%clk 0:00:21.2]} 24. b4 {[%clk 0:02:13.9]} 24... Raf8 {[%clk 0:00:21.2]}
25. Qe3 {[%clk 0:02:11]} 25... f4 {[%clk 0:00:19.8]} 26. Qf2 {[%clk 0:02:06.7]}
26... Qe7 {[%clk 0:00:20.7]} 27. Rc1 {[%clk 0:02:06.9]} 27... g5 {[%clk
0:00:21.2]} 28. Qe2 {[%clk 0:02:06.1]} 28... h5 {[%clk 0:00:19.8]} 29. Na4
{[%clk 0:01:41.1]} 29... Rg7 {[%clk 0:00:19.5]} 30. c5 {[%clk 0:01:39.2]} 30...
g4 {[%clk 0:00:19.5]} 31. c6 {[%clk 0:01:39.5]} 31... gxf3 {[%clk 0:00:13.1]}
32. Rxf3 {[%clk 0:01:40.2]} 32... Qg5 {[%clk 0:00:09]} 33. Rc2 {[%clk
0:01:36.7]} 33... b5 {[%clk 0:00:07]} 34. Nc3 {[%clk 0:01:35.5]} 34... h4 {[%clk
0:00:06]} 35. h3 {[%clk 0:01:35.7]} 35... Nb8 {[%clk 0:00:06.2]} 36. Nxb5 {[%clk
0:01:34.7]} 36... Qh5 {[%clk 0:00:07.1]} 37. Rxf4 {[%clk 0:01:29.9]} 37... Qxe2
{[%clk 0:00:04.9]} 38. Rxf8+ {[%clk 0:01:30.7]} 38... Kxf8 {[%clk 0:00:06.4]}
39. Rxe2 {[%clk 0:01:32.1]} 1-0

[Event "*** Titled Tuesday Blitz"]
[Site "Chess.com"]
[Date "2019.10.01"]
[Round "2"]
[White "Hrant_ChessMood"]
[Black "SoltaniciR"]
[Result "1-0"]
[WhiteElo "2869"]
[BlackElo "2577"]
[TimeControl "180+2"]
[EndTime "13:21:42 PDT"]
[Termination "Hrant_ChessMood won by resignation"]

1. d4 {[%clk 0:03:01.9]} 1... Nf6 {[%clk 0:03:00.5]} 2. c4 {[%clk 0:03:03.4]}
2... Nc6 {[%clk 0:03:01.7]} 3. Nf3 {[%clk 0:03:03.2]} 3... e6 {[%clk 0:03:03]}
4. g3 {[%clk 0:03:01.9]} 4... Bb4+ {[%clk 0:03:03.8]} 5. Bd2 {[%clk 0:03:02.2]}
5... Qe7 {[%clk 0:03:04.9]} 6. b3 {[%clk 0:03:01.9]} 6... Bxd2+ {[%clk
0:02:59.8]} 7. Qxd2 {[%clk 0:02:58.7]} 7... d6 {[%clk 0:02:59.3]} 8. Nc3 {[%clk
0:02:58.7]} 8... O-O {[%clk 0:02:51.3]} 9. Bg2 {[%clk 0:02:58.3]} 9... e5 {[%clk
0:02:52.5]} 10. O-O {[%clk 0:02:53.5]} 10... Bg4 {[%clk 0:02:50.9]} 11. d5
{[%clk 0:02:49]} 11... Nb8 {[%clk 0:02:42.5]} 12. h3 {[%clk 0:02:40.8]} 12...
Bxf3 {[%clk 0:02:40.5]} 13. exf3 {[%clk 0:02:39.9]} 13... a5 {[%clk 0:02:00.1]}
14. Rfe1 {[%clk 0:02:39.5]} 14... Qd7 {[%clk 0:02:00.7]} 15. f4 {[%clk
0:02:33.2]} 15... exf4 {[%clk 0:02:00.6]} 16. Qxf4 {[%clk 0:02:35.1]} 16... Na6
{[%clk 0:01:59.7]} 17. Re3 {[%clk 0:02:31.8]} 17... Rfe8 {[%clk 0:01:57.4]} 18.
Ne4 {[%clk 0:02:25.6]} 18... Nxe4 {[%clk 0:01:56.8]} 19. Bxe4 {[%clk 0:02:27.5]}
19... Re5 {[%clk 0:01:37.7]} 20. Rae1 {[%clk 0:02:26.8]} 20... Rae8 {[%clk
0:01:37.8]} 21. a3 {[%clk 0:02:18.8]} 21... g6 {[%clk 0:01:21.8]} 22. h4 {[%clk
0:02:12]} 22... f5 {[%clk 0:00:45.5]} 23. Bc2 {[%clk 0:02:09.4]} 23... Qg7
{[%clk 0:00:44.7]} 24. Kg2 {[%clk 0:02:04.4]} 24... b6 {[%clk 0:00:39.8]} 25. h5
{[%clk 0:02:04.7]} 25... Rxe3 {[%clk 0:00:39.1]} 26. Rxe3 {[%clk 0:02:04.3]}
26... Re5 {[%clk 0:00:37.3]} 27. h6 {[%clk 0:01:50.5]} 27... Qe7 {[%clk
0:00:35.9]} 28. Rxe5 {[%clk 0:01:49.7]} 28... dxe5 {[%clk 0:00:28.8]} 29. Qe3
{[%clk 0:01:50.4]} 29... e4 {[%clk 0:00:28]} 30. Qd4 {[%clk 0:01:45.8]} 30...
Nc5 {[%clk 0:00:29.1]} 31. b4 {[%clk 0:01:45.8]} 31... axb4 {[%clk 0:00:30]} 32.
axb4 {[%clk 0:01:47.7]} 32... Nd7 {[%clk 0:00:31.4]} 33. Ba4 {[%clk 0:01:44.4]}
33... Ne5 {[%clk 0:00:24.1]} 34. c5 {[%clk 0:01:37.8]} 34... bxc5 {[%clk
0:00:20.1]} 35. bxc5 {[%clk 0:01:39.7]} 35... Qf6 {[%clk 0:00:17.9]} 36. d6
{[%clk 0:01:36.2]} 36... cxd6 {[%clk 0:00:17.4]} 37. cxd6 {[%clk 0:01:37.7]}
37... f4 {[%clk 0:00:18.8]} 38. d7 {[%clk 0:01:29.6]} 38... f3+ {[%clk
0:00:13.3]} 39. Kg1 {[%clk 0:01:25.8]} 39... Nxd7 {[%clk 0:00:09.5]} 40. Qxd7
{[%clk 0:01:27.2]} 40... Qa1+ {[%clk 0:00:09]} 41. Bd1 {[%clk 0:01:28.6]} 1-0